lending/lending_fUSD_20260220
["ID","MTS","AMOUNT","RATE_DAILY","PERIOD"]
[406012158,1771545940053,-233.0,7.666e-05,2]
[406012159,1771545940169,-267.0,7.666e-05,2]
[406012160,1771545940294,-159.54150921,7.798e-05,2]
[406012161,1771545940401,-248.57,7.798e-05,2]
[406012162,1771545973894,-611.68749079,7.798e-05,2]
[406012163,1771545973918,-176.908,7.798e-05,2]
[406012164,1771545973940,-300.0,7.798e-05,2]
[406012165,1771545973962,-300.0,7.798e-05,2]
[406012166,1771545973983,-300.0,7.798e-05,2]
[406012167,1771545974004,-300.0,7.799e-05,2]
[406012168,1771545974027,-1200.0,7.799e-05,2]
[406012169,1771545974049,-252.31,7.8e-05,2]
[406012170,1771545974073,-216.0,7.8e-05,2]
[406012171,1771545974096,-590.62733606,7.8e-05,2]
[406012172,1771545974120,-1031.25467216,7.8e-05,2]
[406012173,1771545974144,-1383.75654098,7.8e-05,2]
[406012174,1771545974166,-2529.38761476,7.8e-05,2]
[406012175,1771545974188,-378.06834525,7.845e-05,2]
[406012176,1771546018678,-1121.93165475,7.845e-05,2]
[406012177,1771546018700,-933.51,7.852e-05,2]
[406012178,1771546018722,-150.0,7.854e-05,2]
[406012179,1771546018744,-351.62100125,7.855e-05,2]
[406012180,1771546018771,-500.0,7.855e-05,2]
[406012181,1771546018798,-500.0,7.855e-05,2]
[406012182,1771546018824,-500.0,7.855e-05,2]
[406012183,1771546018851,-81.937344,7.855e-05,2]
[406012194,1771546231488,-241.0,7.599e-05,2]
[406012195,1771546231513,-1200.0,7.599e-05,2]
[406012196,1771546231530,-300.0,7.599e-05,2]
[406012197,1771546231551,-2301.54689335,7.6e-05,2]
[406012198,1771546231566,-5887.45838227,7.6e-05,2]
[406012199,1771546231586,-4453.09378674,7.6e-05,2]
[406012200,1771546231606,-10907.73446677,7.6e-05,2]
[406012201,1771546231626,-9473.3698712,7.6e-05,2]
[406012202,1771546231645,-214.0,7.6e-05,2]
[406012203,1771546231665,-150.0,7.754e-05,2]
[406012204,1771546231688,-500.0,7.755e-05,2]
[406012205,1771546231705,-500.0,7.755e-05,2]
[406012206,1771546231724,-500.0,7.755e-05,2]
[406012207,1771546231738,-500.0,7.755e-05,2]
[406012210,1771546231758,-500.0,7.755e-05,2]
[406012212,1771546231773,-500.0,7.755e-05,2]
[406012217,1771546231807,-500.0,7.755e-05,2]
[406012220,1771546231826,-500.0,7.755e-05,2]
[406012223,1771546231842,-500.0,7.755e-05,2]
[406012226,1771546231860,-500.0,7.755e-05,2]
[406012228,1771546231877,-500.0,7.755e-05,2]
[406012229,1771546231894,-500.0,7.755e-05,2]
[406012230,1771546231910,-500.0,7.755e-05,2]
[406012231,1771546231927,-500.0,7.755e-05,2]
[406012232,1771546231943,-500.0,7.755e-05,2]
[406012233,1771546231958,-500.0,7.755e-05,2]
[406012234,1771546231974,-500.0,7.755e-05,2]
[406012235,1771546231990,-500.0,7.755e-05,2]
[406012236,1771546232005,-500.0,7.755e-05,2]
[406012237,1771546232021,-500.0,7.755e-05,2]
[406012238,1771546232037,-500.0,7.755e-05,2]
[406012239,1771546232053,-500.0,7.755e-05,2]
[406012240,1771546232068,-500.0,7.755e-05,2]
[406012241,1771546232084,-500.0,7.755e-05,2]
[406012242,1771546232099,-500.0,7.755e-05,2]
[406012243,1771546232114,-500.0,7.755e-05,2]
[406012244,1771546232130,-500.0,7.755e-05,2]
[406012245,1771546232147,-500.0,7.755e-05,2]
[406012246,1771546232168,-500.0,7.755e-05,2]
[406012247,1771546232187,-500.0,7.755e-05,2]
[406012248,1771546232202,-322.03943936,7.755e-05,2]
[406012249,1771546232219,-500.0,7.755e-05,2]
[406012250,1771546232237,-500.0,7.755e-05,2]
[406012251,1771546232253,-500.0,7.755e-05,2]
[406012252,1771546232267,-33746.96944836,7.756e-05,2]
[406012253,1771546234185,-2026.81907933,7.756e-05,2]
[406012254,1771546234205,-2109.64631498,7.756e-05,2]
[406012255,1771546234235,-572.84682148,7.756e-05,2]
[406012256,1771546234246,-953.94191315,7.756e-05,2]
[406012257,1771546234367,-1462.72668444,7.756e-05,2]
[406012260,1771546237586,-1617.9145956,7.756e-05,2]
[406012261,1771546237638,-27131.28553281,7.756e-05,2]
[406012262,1771546237649,-2768.47356276,7.756e-05,2]
[406012263,1771546237660,-837.35,7.756e-05,2]
[406012264,1771546237791,-610.00414217,7.756e-05,2]
[406012265,1771546237803,-304.0,7.756e-05,2]
[406012267,1771546239660,-420.86114321,7.756e-05,2]
[406012270,1771546239671,-1587.711,7.756e-05,2]
[406012271,1771546239682,-5021.90947583,7.756e-05,2]
[406012272,1771546239692,-425.63,7.756e-05,2]
[406012273,1771546239722,-2579.5763362,7.756e-05,2]
[406012274,1771546239934,-1636.34143493,7.756e-05,2]
[406012275,1771546239957,-1405.08006027,7.756e-05,2]
[406012276,1771546239969,-922.18333418,7.756e-05,2]
[406012277,1771546240011,-1482404.3965203,7.756e-05,2]
[406012278,1771546240020,-4348.53,7.788e-05,2]
[406012279,1771546240029,-3000.0,7.8e-05,2]
[406012280,1771546240039,-1163.75,7.858e-05,2]
[406012281,1771546240048,-6000.0,7.9e-05,2]
[406012282,1771546240058,-9100.0,8e-05,2]
[406012283,1771546240350,-193.0,8.11e-05,2]
[406012284,1771546240360,-315.0,8.164e-05,2]
[406012285,1771546240369,-882.75,8.168e-05,2]
[406012286,1771546240379,-240.503778,8.178e-05,2]
[406012287,1771546240388,-174.0,8.18e-05,2]
[406012288,1771546240399,-477.0,8.217e-05,2]
[406012289,1771546240409,-221.184304,8.219e-05,2]
[406012290,1771546240419,-2337.53,8.219e-05,2]
[406012291,1771546240429,-1000.0,8.219e-05,2]
[406012292,1771546240441,-1321.9,8.219e-05,2]
[406012293,1771546240450,-178.85,8.219e-05,2]
[406012294,1771546240460,-500.0,8.219e-05,2]
[406012295,1771546240470,-168.06204034,8.248e-05,2]
[406012296,1771546240479,-193.0,8.343e-05,2]
[406012297,1771546240488,-378.8984744,8.359e-05,2]
[406012298,1771546240498,-1680.0,8.359e-05,2]
[406012299,1771546240508,-578.20924308,8.381e-05,2]
[406012300,1771546240517,-151.0,8.381e-05,2]
[406012301,1771546240528,-200.0,8.381e-05,2]
[406012302,1771546240538,-174.61919141,8.381e-05,2]
[406012303,1771546240549,-250.0,8.381e-05,2]
[406012304,1771546240560,-277.35679052,8.381e-05,2]
[406012305,1771546240569,-693.3919763,8.381e-05,2]
[406012306,1771546240578,-743.50770149,8.381e-05,2]
[406012307,1771546240587,-207.41,8.396e-05,2]
[406012308,1771546240597,-225.97,8.4e-05,2]
[406012309,1771546240607,-26202.0,8.417e-05,2]
[406012310,1771546240616,-29189.8,8.419e-05,2]
[406012311,1771546240626,-151.0,8.436e-05,2]
[406012312,1771546240636,-719.04747942,8.436e-05,2]
[406012313,1771546240645,-198.094,8.457e-05,2]
[406012314,1771546240654,-150.0,8.458e-05,2]
[406012315,1771546240664,-150.0,8.458e-05,2]
[406012316,1771546240673,-500.0,8.458e-05,2]
[406012317,1771546240684,-500.0,8.458e-05,2]
[406012318,1771546240693,-500.0,8.458e-05,2]
[406012319,1771546240705,-500.0,8.458e-05,2]
[406012320,1771546240715,-500.0,8.458e-05,2]
[406012321,1771546240725,-150.0,8.458e-05,2]
[406012322,1771546240736,-500.0,8.458e-05,2]
[406012323,1771546240746,-500.0,8.458e-05,2]
[406012324,1771546240757,-150.0,8.458e-05,2]
[406012325,1771546240766,-500.0,8.458e-05,2]
[406012326,1771546240776,-551.0,8.458e-05,2]
[406012327,1771546240785,-500.0,8.458e-05,2]
[406012328,1771546240795,-500.0,8.458e-05,2]
[406012329,1771546240804,-500.0,8.458e-05,2]
[406012330,1771546240816,-500.0,8.458e-05,2]
[406012331,1771546240826,-7339.28,8.462e-05,2]
[406012332,1771546240836,-151.0,8.491e-05,2]
[406012333,1771546240846,-745.65223616,8.491e-05,2]
[406012334,1771546240856,-642.57522524,8.493e-05,2]
[406012335,1771546240865,-150.0,8.513e-05,2]
[406012336,1771546240874,-500.0,8.513e-05,2]
[406012337,1771546240882,-500.0,8.513e-05,2]
[406012338,1771546240891,-500.0,8.513e-05,2]
[406012339,1771546240900,-500.0,8.513e-05,2]
[406012340,1771546240910,-500.0,8.513e-05,2]
[406012341,1771546240919,-500.0,8.513e-05,2]
[406012342,1771546240928,-500.0,8.513e-05,2]
[406012343,1771546240938,-150.0,8.513e-05,2]
[406012344,1771546240947,-500.0,8.513e-05,2]
[406012345,1771546240958,-551.0,8.513e-05,2]
[406012346,1771546240967,-500.0,8.513e-05,2]
[406012347,1771546240977,-500.0,8.513e-05,2]
[406012348,1771546240987,-500.0,8.513e-05,2]
[406012349,1771546240997,-500.0,8.513e-05,2]
[406012350,1771546241008,-250.0,8.529e-05,2]
[406012351,1771546241019,-255.0,8.53e-05,2]
[406012352,1771546241029,-151.0,8.546e-05,2]
[406012353,1771546241038,-773.2413689,8.546e-05,2]
[406012354,1771546241048,-287.38563793,8.568e-05,2]
[406012355,1771546241058,-500.0,8.568e-05,2]
[406012356,1771546241068,-500.0,8.568e-05,2]
[406012357,1771546241077,-500.0,8.568e-05,2]
[406012358,1771546241089,-278.50973652,8.568e-05,2]
[406012359,1771546241100,-182.0,8.568e-05,2]
[406012360,1771546241110,-479.0,8.568e-05,2]
[406012361,1771546241120,-288.24134749,8.568e-05,2]
[406012362,1771546241129,-150.0,8.568e-05,2]
[406012363,1771546241140,-500.0,8.568e-05,2]
[406012364,1771546241151,-551.0,8.568e-05,2]
[406012365,1771546241160,-500.0,8.568e-05,2]
[406012366,1771546241170,-500.0,8.568e-05,2]
[406012367,1771546241180,-500.0,8.568e-05,2]
[406012368,1771546241191,-500.0,8.568e-05,2]
[406012369,1771546241202,-801.85129955,8.601e-05,2]
[406012370,1771546241213,-500.0,8.604e-05,2]
[406012371,1771546241222,-175.15043052,8.604e-05,2]
[406012372,1771546241232,-500.0,8.604e-05,2]
[406012373,1771546241241,-501.49147741,8.622e-05,2]
[406012374,1771546241252,-500.0,8.622e-05,2]
[406012375,1771546241261,-500.0,8.622e-05,2]
[406012376,1771546241270,-500.0,8.622e-05,2]
[406012377,1771546241279,-150.0,8.622e-05,2]
[406012378,1771546241289,-551.0,8.622e-05,2]
[406012379,1771546241299,-500.0,8.622e-05,2]
[406012380,1771546241308,-500.0,8.622e-05,2]
[406012381,1771546241318,-500.0,8.622e-05,2]
[406012382,1771546241327,-500.0,8.622e-05,2]
[406012383,1771546241336,-250.0,8.641e-05,2]
[406012384,1771546241345,-831.51979763,8.656e-05,2]
[406012385,1771546241355,-500.0,8.677e-05,2]
[406012386,1771546241364,-265.99896868,8.677e-05,2]
[406012387,1771546241374,-551.0,8.677e-05,2]
[406012388,1771546241383,-500.0,8.677e-05,2]
[406012389,1771546241393,-500.0,8.677e-05,2]
[406012390,1771546241402,-500.0,8.677e-05,2]
[406012391,1771546241411,-862.28603014,8.711e-05,2]
[406012392,1771546241421,-500.0,8.732e-05,2]
[406012393,1771546241430,-551.0,8.732e-05,2]
[406012394,1771546241439,-500.0,8.732e-05,2]
[406012395,1771546241449,-500.0,8.732e-05,2]
[406012396,1771546241458,-500.0,8.732e-05,2]
[406012397,1771546241468,-1061.7310987,8.733e-05,2]
[406012398,1771546241477,-3583.2485285,8.744e-05,2]
[406012399,1771546241488,-894.19061326,8.766e-05,2]
[406012400,1771546241498,-500.0,8.787e-05,2]
[406012401,1771546241508,-551.0,8.787e-05,2]
[406012402,1771546241519,-280.56136769,8.787e-05,2]
[406012403,1771546241529,-176.0,8.787e-05,2]
[406012404,1771546241538,-500.0,8.787e-05,2]
[406012405,1771546241548,-927.27566595,8.821e-05,2]
[406012406,1771546241558,-500.0,8.842e-05,2]
[406012407,1771546241567,-551.0,8.842e-05,2]
[406012408,1771546241576,-961.58486559,8.876e-05,2]
[406012409,1771546241585,-500.0,8.896e-05,2]
[406012410,1771546241595,-551.0,8.896e-05,2]
[406012411,1771546241604,-200.0,8.929e-05,2]
[406012412,1771546241613,-287.61899177,8.929e-05,2]
[406012413,1771546241622,-997.16350561,8.931e-05,2]
[406012414,1771546241632,-500.0,8.951e-05,2]
[406012415,1771546241640,-551.0,8.951e-05,2]
[406012416,1771546241649,-500.0,9.006e-05,2]
[406012417,1771546241658,-551.0,9.006e-05,2]
[406012418,1771546241667,-551.0,9.061e-05,2]
[406012419,1771546241676,-380.0,9.061e-05,2]
[406012420,1771546241684,-551.0,9.116e-05,2]
[406012421,1771546241695,-151.0,9.17e-05,2]
[406012422,1771546241705,-158.69956,9.17e-05,2]
[406012423,1771546241714,-158.69956,9.17e-05,2]
[406012424,1771546241724,-158.69956,9.17e-05,2]
[406012425,1771546241734,-158.69956,9.17e-05,2]
[406012426,1771546241743,-505.40891,9.17e-05,2]
[406012427,1771546241754,-505.40891,9.17e-05,2]
[406012428,1771546241763,-505.40891,9.17e-05,2]
[406012429,1771546241772,-505.40891,9.17e-05,2]
[406012430,1771546241782,-551.0,9.17e-05,2]
[406012431,1771546241792,-882.75,9.19e-05,2]
[406012432,1771546241801,-192.765694,9.19e-05,2]
[406012433,1771546241811,-192.765694,9.19e-05,2]
[406012434,1771546241820,-192.765694,9.19e-05,2]
[406012435,1771546241829,-192.765694,9.19e-05,2]
[406012436,1771546241839,-2130.29344,9.19e-05,2]
[406012437,1771546241849,-2130.29344,9.19e-05,2]
[406012438,1771546241858,-2130.29344,9.19e-05,2]
[406012439,1771546241868,-2130.29344,9.19e-05,2]
[406012440,1771546241877,-2351.0,9.195e-05,2]
[406012441,1771546241890,-551.0,9.225e-05,2]
[406012442,1771546241901,-1000.0,9.247e-05,2]
[406012443,1771546241911,-551.0,9.28e-05,2]
[406012444,1771546241922,-1855.78105038,9.304e-05,2]
[406012445,1771546241931,-151.0,9.304e-05,2]
[406012446,1771546241941,-151.0,9.304e-05,2]
[406012447,1771546241951,-276.48038,9.323e-05,2]
[406012448,1771546241960,-551.0,9.335e-05,2]
[406012449,1771546241969,-551.0,9.39e-05,2]
[406012450,1771546241980,-551.0,9.444e-05,2]
[406012451,1771546241989,-298.26089446,9.477e-05,2]
[406012452,1771546241999,-551.0,9.499e-05,2]
[406012453,1771546242008,-551.0,9.554e-05,2]
[406012454,1771546242017,-151.0,9.589e-05,2]
[406012455,1771546242026,-151.0,9.589e-05,2]
[406012456,1771546242036,-151.0,9.589e-05,2]
[406012457,1771546242045,-551.0,9.609e-05,2]
[406012458,1771546242054,-551.0,9.663e-05,2]
[406012459,1771546242064,-250.0,9.673e-05,2]
[406012460,1771546242074,-566.86551778,9.718e-05,2]
[406012461,1771546242083,-205.0,9.8e-05,2]
[406012462,1771546242092,-151.0,0.0001,2]
[406012463,1771546242101,-1000.0,0.0001,2]
[406012464,1771546242110,-352.09461882,0.0001,2]
[406012465,1771546242119,-500.0,0.0001,2]
[406012466,1771546242128,-500.0,0.0001,2]
[406012467,1771546242141,-500.0,0.0001,2]
[406012468,1771546242150,-500.0,0.0001,2]
[406012469,1771546242159,-500.0,0.0001,2]
[406012470,1771546242168,-500.0,0.0001,2]
[406012471,1771546242178,-500.0,0.0001,2]
[406012472,1771546242188,-500.0,0.0001,2]
[406012473,1771546242198,-500.0,0.0001,2]
[406012474,1771546242207,-151.0,0.0001,2]
[406012475,1771546242217,-151.0,0.0001,2]
[406012476,1771546242227,-151.0,0.0001,2]
[406012477,1771546242236,-151.0,0.0001,2]
[406012478,1771546242245,-151.0,0.0001,2]
[406012479,1771546242254,-500.0,0.0001,2]
[406012480,1771546242264,-151.0,0.0001,2]
[406012481,1771546242273,-500.0,0.0001,2]
[406012482,1771546242282,-151.0,0.0001,2]
[406012483,1771546242291,-500.0,0.0001,2]
[406012484,1771546242300,-151.0,0.0001,2]
[406012485,1771546242310,-500.0,0.0001,2]
[406012486,1771546242319,-151.0,0.0001,2]
[406012487,1771546242329,-500.0,0.0001,2]
[406012488,1771546242338,-151.0,0.0001,2]
[406012489,1771546242348,-500.0,0.0001,2]
[406012490,1771546242357,-151.0,0.0001,2]
[406012491,1771546242367,-500.0,0.0001,2]
[406012492,1771546242376,-500.0,0.0001,2]
[406012493,1771546242386,-500.0,0.0001,2]
[406012495,1771546242395,-151.0,0.0001,2]
[406012497,1771546242404,-151.0,0.0001,2]
[406012499,1771546242414,-151.0,0.0001,2]
[406012501,1771546242423,-151.0,0.0001,2]
[406012503,1771546242433,-151.0,0.0001,2]
[406012505,1771546242443,-151.0,0.0001,2]
[406012506,1771546242452,-151.0,0.0001,2]
[406012507,1771546242461,-151.0,0.0001,2]
[406012508,1771546242471,-151.0,0.0001,2]
[406012509,1771546242480,-151.0,0.0001,2]
[406012510,1771546242490,-151.0,0.0001,2]
[406012511,1771546242499,-151.0,0.0001,2]
[406012512,1771546242509,-151.0,0.0001,2]
[406012513,1771546242518,-151.0,0.0001,2]
[406012514,1771546242528,-151.0,0.0001,2]
[406012515,1771546242537,-151.0,0.0001,2]
[406012516,1771546242547,-151.0,0.0001,2]
[406012517,1771546242556,-151.0,0.0001,2]
[406012518,1771546242566,-151.0,0.0001,2]
[406012519,1771546242575,-151.0,0.0001,2]
[406012520,1771546242584,-834.98384,0.0001,2]
[406012521,1771546242593,-834.98385,0.0001,2]
[406012522,1771546242602,-834.98385,0.0001,2]
[406012523,1771546242611,-834.98385,0.0001,2]
[406012524,1771546242620,-834.98385,0.0001,2]
[406012525,1771546242629,-834.98384,0.0001,2]
[406012526,1771546242638,-181.85750958,0.0001,2]
[406012527,1771546242648,-309.29654756,0.00010025,2]
[406012528,1771546242656,-3292.0,0.00010114,2]
[406012529,1771546242666,-178.3994394,0.00010146,2]
[406012530,1771546242675,-882.75,0.00010211,2]
[406012531,1771546242684,-1000.0,0.00010274,2]
[406012532,1771546242693,-178.85,0.00010274,2]
[406012533,1771546242703,-151.0,0.00010314,2]
[406012534,1771546242712,-163.451738,0.00010314,2]
[406012535,1771546242721,-259.88692,0.00010314,2]
[406012536,1771546242731,-192.765694,0.00010314,2]
[406012537,1771546242740,-192.765694,0.00010314,2]
[406012538,1771546242749,-192.765694,0.00010314,2]
[406012539,1771546242759,-192.765694,0.00010314,2]
[406012540,1771546242769,-158.69956,0.00010314,2]
[406012541,1771546242778,-158.69956,0.00010314,2]
[406012542,1771546242787,-158.69956,0.00010314,2]
[406012543,1771546242796,-158.69956,0.00010314,2]
[406012544,1771546242805,-505.40891,0.00010314,2]
[406012545,1771546242815,-505.40891,0.00010314,2]
[406012546,1771546242825,-505.40891,0.00010314,2]
[406012547,1771546242834,-505.40891,0.00010314,2]
[406012548,1771546242843,-2130.29344,0.00010314,2]
[406012549,1771546242853,-2130.29344,0.00010314,2]
[406012550,1771546242863,-2130.29344,0.00010314,2]
[406012551,1771546242872,-2130.29344,0.00010314,2]
[406012552,1771546242881,-151.0,0.00010314,2]
[406012553,1771546242891,-151.0,0.00010314,2]
[406012554,1771546242902,-151.0,0.00010314,2]
[406012555,1771546242911,-62240.83,0.00010314,2]
[406012556,1771546242920,-373.37331022,0.00010573,2]
[406012557,1771546242930,-2453.0,0.0001063,2]
[406012558,1771546242940,-1172.495,0.0001063,2]
[406012559,1771546242949,-413.0,0.0001063,2]
[406012560,1771546242959,-12100.0,0.000109,3]
[406012561,1771546242968,-151.29271323,0.000109,2]
[406012562,1771546242977,-151.29271323,0.000109,2]
[406012563,1771546242986,-200.0,0.00010959,2]
[406012564,1771546242996,-200.0,0.00010959,2]
[406012565,1771546243005,-200.0,0.00010959,2]
[406012566,1771546243015,-2887.39,0.00010959,2]
[406012567,1771546243027,-150.0,0.00010959,2]
[406012568,1771546243038,-166.66,0.00010959,2]
[406012569,1771546243048,-173.270731,0.00010959,2]
[406012570,1771546243057,-173.270731,0.00010959,2]
[406012571,1771546243066,-173.270731,0.00010959,2]
[406012572,1771546243075,-173.270731,0.00010959,2]
[406012573,1771546243085,-173.270731,0.00010959,2]
[406012574,1771546243095,-173.270731,0.00010959,2]
[406012575,1771546243104,-173.270731,0.00010959,2]
[406012576,1771546243115,-173.270731,0.00010959,2]
[406012577,1771546243125,-150.0,0.00010959,2]
[406012578,1771546243135,-253.818976,0.00010959,2]
[406012579,1771546243147,-253.818976,0.00010959,2]
[406012580,1771546243158,-253.818976,0.00010959,2]
[406012581,1771546243168,-253.818976,0.00010959,2]
[406012582,1771546243177,-253.818976,0.00010959,2]
[406012583,1771546243188,-253.818976,0.00010959,2]
[406012584,1771546243197,-253.818976,0.00010959,2]
[406012585,1771546243206,-253.818976,0.00010959,2]
[406012586,1771546243215,-166.66,0.00011068,2]
[406012587,1771546243228,-10242.16,0.00011099,2]
[406012588,1771546243237,-948.26663093,0.00011099,2]
[406012589,1771546243247,-948.26663092,0.00011099,2]
[406012590,1771546243256,-948.26663092,0.00011099,2]
[406012591,1771546243265,-948.26663092,0.00011099,2]
[406012592,1771546243274,-192.765694,0.00011099,2]
[406012593,1771546243283,-192.765694,0.00011099,2]
[406012594,1771546243292,-192.765694,0.00011099,2]
[406012595,1771546243302,-192.765694,0.00011099,2]
[406012596,1771546243311,-173.270731,0.00011099,2]
[406012597,1771546243320,-173.270731,0.00011099,2]
[406012598,1771546243329,-173.270731,0.00011099,2]
[406012599,1771546243339,-173.270731,0.00011099,2]
[406012600,1771546243348,-158.69956,0.00011099,2]
[406012601,1771546243357,-158.69956,0.00011099,2]
[406012602,1771546243367,-158.69956,0.00011099,2]
[406012603,1771546243376,-158.69956,0.00011099,2]
[406012604,1771546243386,-10142.77,0.00011178,2]
[406012605,1771546243395,-166.66,0.00011178,2]
[406012606,1771546243405,-10140.26,0.00011197,2]
[406012607,1771546243415,-450.0,0.00011197,7]
[406012608,1771546243424,-2130.29344,0.00011197,2]
[406012609,1771546243434,-2130.29344,0.00011197,2]
[406012610,1771546243444,-2130.29344,0.00011197,2]
[406012611,1771546243453,-2130.29344,0.00011197,2]
[406012612,1771546243462,-151.0,0.00011197,2]
[406012613,1771546243471,-151.0,0.00011197,2]
[406012614,1771546243480,-151.0,0.00011197,2]
[406012615,1771546243490,-882.75,0.00011232,2]
[406012616,1771546243500,-10135.39,0.00011232,2]
[406012617,1771546243509,-505.40891,0.00011232,2]
[406012618,1771546243518,-505.40891,0.00011232,2]
[406012619,1771546243527,-505.40891,0.00011232,2]
[406012620,1771546243536,-505.40891,0.00011232,2]
[406012621,1771546243545,-253.818976,0.00011232,2]
[406012622,1771546243554,-253.818976,0.00011232,2]
[406012623,1771546243563,-253.818976,0.00011232,2]
[406012624,1771546243572,-253.818976,0.00011232,2]
[406012625,1771546243582,-833.54,0.00011233,2]
[406012626,1771546243590,-10130.77,0.00011233,2]
[406012627,1771546243599,-151.0,0.00011233,2]
[406012628,1771546243609,-166.66,0.00011288,2]
[406012629,1771546243618,-192.765694,0.00011295,2]
[406012630,1771546243627,-192.765694,0.00011295,2]
[406012631,1771546243636,-192.765694,0.00011295,2]
[406012632,1771546243646,-192.765694,0.00011295,2]
[406012633,1771546243655,-173.270731,0.00011295,2]
[406012634,1771546243664,-173.270731,0.00011295,2]
[406012635,1771546243673,-173.270731,0.00011295,2]
[406012636,1771546243682,-173.270731,0.00011295,2]
[406012637,1771546243691,-158.69956,0.00011295,2]
[406012638,1771546243700,-158.69956,0.00011295,2]
[406012639,1771546243709,-158.69956,0.00011295,2]
[406012640,1771546243718,-158.69956,0.00011295,2]
[406012641,1771546243726,-1338.0,0.00011295,2]
[406012642,1771546243735,-617.0,0.00011295,2]
[406012643,1771546243744,-1039.0,0.00011295,2]
[406012644,1771546243753,-1275.0,0.00011295,2]
[406012645,1771546243762,-1209.0,0.00011295,2]
[406012646,1771546243771,-1000.0,0.00011301,2]
[406012647,1771546243780,-166.66,0.00011397,2]
[406012648,1771546243789,-1321.9,0.00011507,2]
[406012649,1771546243798,-166.66,0.00011507,2]
[406012650,1771546243807,-331.776456,0.00011653,2]
[406012651,1771546243816,-19903.60187,0.00011712,2]
[406012652,1771546243826,-5227.217608,0.00011712,2]
[406012653,1771546243835,-151.29271323,0.00011815,2]
[406012654,1771546243844,-500.0,0.00012,2]
[406012655,1771546243853,-500.0,0.00012,2]
[406012656,1771546243863,-500.0,0.00012,2]
[406012657,1771546243872,-948.26663092,0.00012227,2]
[406012658,1771546243881,-882.75,0.00012253,2]
[406012659,1771546243891,-1000.0,0.00012329,2]
[406012660,1771546243900,-178.85,0.00012329,2]
[406012661,1771546243909,-2130.29344,0.00012329,2]
[406012662,1771546243918,-2130.29344,0.00012329,2]
[406012663,1771546243927,-2130.29344,0.00012329,2]
[406012664,1771546243936,-2130.29344,0.00012329,2]
[406012665,1771546243945,-151.0,0.00012329,2]
[406012666,1771546243954,-151.0,0.00012329,2]
[406012667,1771546243963,-3240.0,0.00013425,2]
[406012668,1771546243972,-505.40891,0.0001353,2]
[406012669,1771546243981,-505.40891,0.0001353,2]
[406012670,1771546243990,-505.40891,0.0001353,2]
[406012671,1771546244000,-505.40891,0.0001353,2]
[406012672,1771546244009,-253.818976,0.0001353,2]
[406012673,1771546244018,-253.818976,0.0001353,2]
[406012674,1771546244027,-253.818976,0.0001353,2]
[406012675,1771546244036,-253.818976,0.0001353,2]
[406012676,1771546244045,-2453.0,0.0001363,2]
[406012677,1771546244054,-152.31,0.0001367,2]
[406012678,1771546244064,-500.0,0.00013698,2]
[406012679,1771546244073,-500.0,0.00013698,2]
[406012680,1771546244082,-500.0,0.00013698,2]
[406012681,1771546244091,-500.0,0.00013698,2]
[406012682,1771546244100,-500.0,0.00013698,2]
[406012683,1771546244109,-500.0,0.00013698,2]
[406012684,1771546244118,-500.0,0.00013698,2]
[406012685,1771546244127,-500.0,0.00013698,2]
[406012686,1771546244136,-500.0,0.00013698,2]
[406012687,1771546244148,-560.25131613,0.00013698,2]
[406012688,1771546244157,-500.0,0.00013698,2]
[406012689,1771546244166,-500.0,0.00013698,2]
[406012690,1771546244175,-500.0,0.00013698,2]
[406012691,1771546244184,-500.0,0.00013698,2]
[406012692,1771546244193,-500.0,0.00013698,2]